[Event "DVM U12 2021-22"]
[Site "Naumburg"]
[Date "2022.03.27"]
[Round "5"]
[White "Helms, Finn"]
[Black "Ermitsch, Magnus"]
[Result "0-1"]
[ECO "A45"]
[WhiteElo "1911"]
[BlackElo "2127"]
[Annotator "NA"]
[PlyCount "84"]
[EventDate "2022.03.25"]
[EventType "team-tourn"]
[EventRounds "7"]
[EventCountry "GER"]
[SourceTitle "playchess.com"]
[Source "ChessBase"]
[SourceQuality "1"]
[TimeControl "40/5400+30:1800+30"]

1. d4 {[%emt 0:00:08]} Nf6 {[%emt 0:00:07]} 2. Bf4 {[%emt 0:00:05]} d5 {[%emt 0:00:05]} 3. e3 {[%emt 0:00:04]} c5 {[%emt 0:00:05]} 4. Nf3 {[%emt 0:00:08]} Nc6 {[%emt 0:00:19]} 5. c3 {[%emt 0:00:09]} Qb6 {[%emt 0:00:25]} 6. Qc1 {[%emt 0:02:25]} Bf5 {[%emt 0:02:58]} 7. Nbd2 {[%emt 0:01:10]} Rc8 {[%emt 0:02:48]} 8. Nb3 {[%emt 0:02:54]} e6 {[%emt 0:02:19]} 9. Be2 {[%emt 0:02:03]} cxd4 {[%emt 0:04:36]} 10. Nbxd4 {[%emt 0:04:33]} Be4 {[%emt 0:03:00]} 11. O-O {[%emt 0:06:30]} Bc5 {[%emt 0:02:12]} 12. Nxc6 {[%emt 0:06:41]} bxc6 {[%emt 0:00:35]} 13. Ne5 {[%emt 0:01:03]} h6 {[%emt 0:01:55]} 14. b4 {[%emt 0:02:45]} Be7 {[%emt 0:00:21]} 15. a4 {[%emt 0:00:53]} O-O {[%emt 0:03:02]} 16. a5 {[%emt 0:00:58]} Qb7 {[%emt 0:01:00]} 17. Bd3 {[%emt 0:10:27]} a6 {[%emt 0:05:49]} 18. Rb1 {[%emt 0:05:07]} Bxd3 {[%emt 0:02:25]} 19. Nxd3 {[%emt 0:00:03]} Qb5 {[%emt 0:00:42]} 20. Ne5 {[%emt 0:04:15]} c5 {[%emt 0:01:32]} 21. Qb2 {[%emt 0:01:50]} cxb4 {[%emt 0:01:31]} 22. cxb4 {[%emt 0:00:02]} Ne4 {[%emt 0:00:50]} 23. Nf3 {[%emt 0:11:22]} Rc4 {[%emt 0:03:21]} 24. Nd4 {[%emt 0:10:48]} Qxb4 {[%emt 0:00:50]} 25. Qxb4 {[%emt 0:02:02]} Bxb4 {[%emt 0:01:41]} 26. Nc6 {[%emt 0:01:37]} Rxc6 {[%emt 0:05:26]} 27. Rxb4 {[%emt 0:00:03]} Nd2 {[%emt 0:00:26]} 28. Rb6 {[%emt 0:01:23]} Rfc8 {[%emt 0:02:12]} 29. Rxc6 {[%emt 0:02:10]} Rxc6 {[%emt 0:00:18]} 30. Rd1 {[%emt 0:01:06]} Nb3 {[%emt 0:01:22]} 31. h4 {[%emt 0:08:06]} Nxa5 {[%emt 0:00:41]} 32. h5 {[%emt 0:00:19]} Nb3 {[%emt 0:00:49]} 33. e4 {[%emt 0:00:18]} d4 {[%emt 0:01:29]} 34. Kf1 {[%emt 0:02:47]} a5 {[%emt 0:00:58]} 35. Be5 {[%emt 0:01:03]} a4 {[%emt 0:01:54]} 36. Rd3 {[%emt 0:00:49]} f6 {[%emt 0:00:48]} 37. Bf4 {[%emt 0:02:51]} Rc3 {[%emt 0:01:45]} 38. Rd1 {[%emt 0:01:18]} e5 {[%emt 0:00:34]} 39. Bg3 {[%emt 0:00:30]} a3 {[%emt 0:00:09]} 40. f3 {[%emt 0:01:18]} a2 {[%emt 0:00:07]} 41. Be1 {[%emt 0:30:03]} Rc1 {[%emt 0:30:14]} 42. Rxc1 {[%emt 0:00:57]} Nxc1 {[%emt 0:00:08]} 0-1

[Event "DVM U12 2021-22"]
[Site "Naumburg"]
[Date "2022.03.27"]
[Round "5"]
[White "Haubold, Christian Lucas"]
[Black "Graham, David B"]
[Result "1-0"]
[ECO "B78"]
[WhiteElo "1808"]
[BlackElo "2128"]
[Annotator "NA"]
[PlyCount "67"]
[EventDate "2022.03.25"]
[EventType "team-tourn"]
[EventRounds "7"]
[EventCountry "GER"]
[SourceTitle "playchess.com"]
[Source "ChessBase"]
[SourceQuality "1"]
[TimeControl "40/5400+30:1800+30"]

1. e4 {[%emt 0:00:03]} c5 {[%emt 0:00:05]} 2. Nf3 {[%emt 0:00:10]} d6 {[%emt 0:00:03]} 3. d4 {[%emt 0:00:14]} cxd4 {[%emt 0:00:03]} 4. Nxd4 {[%emt 0:00:16]} Nf6 {[%emt 0:00:04]} 5. Nc3 {[%emt 0:00:27]} g6 {[%emt 0:00:04]} 6. Be3 {[%emt 0:00:39]} Bg7 {[%emt 0:03:13]} 7. f3 {[%emt 0:00:41]} O-O {[%emt 0:00:07]} 8. Qd2 {[%emt 0:00:21]} Nc6 {[%emt 0:00:04]} 9. Bc4 {[%emt 0:00:58]} Bd7 {[%emt 0:00:04]} 10. O-O-O {[%emt 0:01:02]} Rc8 {[%emt 0:00:09]} 11. Bb3 {[%emt 0:00:30]} Nxd4 {[%emt 0:00:07]} 12. Bxd4 {[%emt 0:01:13]} b5 {[%emt 0:00:27]} 13. Nd5 {[%emt 0:01:27]} Nxd5 {[%emt 0:00:08]} 14. exd5 {[%emt 0:00:34]} Bxd4 {[%emt 0:04:10]} 15. Qxd4 {[%emt 0:00:21]} a5 {[%emt 0:00:39]} 16. a3 {[%emt 0:04:11]} Bf5 {[%emt 0:02:57]} 17. g4 {[%emt 0:07:30]} Bd7 {[%emt 0:03:55]} 18. h4 {[%emt 0:01:51]} Qc7 {[%emt 0:00:35]} 19. Rh2 {[%emt 0:02:15]} Qc5 {[%emt 0:07:54]} 20. Qe4 {[%emt 0:07:04]} b4 {[%emt 0:08:19]} 21. a4 {[%emt 0:04:36]} e5 {[%emt 0:07:38]} 22. dxe6 {[%emt 0:01:28]} fxe6 {[%emt 0:02:46]} 23. Bxe6+ {[%emt 0:00:57]} Bxe6 {[%emt 0:00:04]} 24. Qxe6+ {[%emt 0:00:07]} Kh8 {[%emt 0:00:13]} 25. h5 {[%emt 0:20:59]} gxh5 {[%emt 0:04:21]} 26. gxh5 {[%emt 0:04:00]} Rxf3 {[%emt 0:01:41]} 27. Qxd6 {[%emt 0:11:40]} Qg5+ {[%emt 0:03:35]} 28. Kb1 {[%emt 0:01:28]} Rf5 {[%emt 0:14:26]} 29. Re2 {[%emt 0:10:02]} Rcf8 {[%emt 0:13:43]} 30. Re5 {[%emt 0:02:38]} Qf4 {[%emt 0:01:59]} 31. Rxf5 {[%emt 0:02:43]} Qxf5 {[%emt 0:02:40]} 32. h6 {[%emt 0:00:18]} Rf6 {[%emt 0:01:34]} 33. Qe7 {[%emt 0:01:09]} Rg6 {[%emt 0:05:58]} 34. Rd8+ {[%emt 0:00:06]} 1-0

[Event "DVM U12 2021-22"]
[Site "Naumburg"]
[Date "2022.03.27"]
[Round "5"]
[White "Torosyan, Bagrat"]
[Black "Zimmer, Tim"]
[Result "1-0"]
[ECO "C54"]
[WhiteElo "1695"]
[BlackElo "1170"]
[Annotator "NA"]
[PlyCount "76"]
[EventDate "2022.03.25"]
[EventType "team-tourn"]
[EventRounds "7"]
[EventCountry "GER"]
[SourceTitle "playchess.com"]
[Source "ChessBase"]
[SourceQuality "1"]
[TimeControl "40/5400+30:1800+30"]

1. e4 {[%emt 0:00:03]} e5 {[%emt 0:00:06]} 2. Nf3 {[%emt 0:00:05]} Nc6 {[%emt 0:00:12]} 3. Bc4 {[%emt 0:00:10]} Bc5 {[%emt 0:00:32]} 4. c3 {[%emt 0:00:08]} Nf6 {[%emt 0:00:04]} 5. d3 {[%emt 0:00:03]} a6 {[%emt 0:00:29]} 6. O-O {[%emt 0:00:13]} O-O {[%emt 0:02:08]} 7. Nbd2 {[%emt 0:00:50]} d5 {[%emt 0:05:10]} 8. exd5 {[%emt 0:00:15]} Nxd5 {[%emt 0:00:08]} 9. a4 {[%emt 0:00:15]} Ba7 {[%emt 0:05:06]} 10. Ne4 {[%emt 0:04:00]} Bg4 {[%emt 0:03:30]} 11. h3 {[%emt 0:01:54]} Bh5 {[%emt 0:00:21]} 12. Ng3 {[%emt 0:01:07]} Bg6 {[%emt 0:01:12]} 13. h4 {[%emt 0:02:47]} h6 {[%emt 0:04:26]} 14. h5 {[%emt 0:02:07]} Bh7 {[%emt 0:01:54]} 15. a5 {[%emt 0:00:35]} Re8 {[%emt 0:02:39]} 16. Qb3 {[%emt 0:02:50]} Nce7 {[%emt 0:07:30]} 17. Nxe5 {[%emt 0:02:45]} Qd6 {[%emt 0:05:39]} 18. d4 {[%emt 0:02:30]} c5 {[%emt 0:06:47]} 19. Nf3 {[%emt 0:02:13]} cxd4 {[%emt 0:03:31]} 20. cxd4 {[%emt 0:03:19]} Red8 {[%emt 0:02:01]} 21. Bd2 {[%emt 0:01:59]} Qf6 {[%emt 0:03:50]} 22. Bc3 {[%emt 0:02:17]} Rab8 {[%emt 0:07:54]} 23. Qa2 {[%emt 0:06:08]} Rbc8 {[%emt 0:04:11]} 24. Rac1 {[%emt 0:02:59]} Qd6 {[%emt 0:03:36]} 25. Rfe1 {[%emt 0:02:09]} Kf8 {[%emt 0:01:15]} 26. Ne4 {[%emt 0:19:46]} Qf4 {[%emt 0:07:05]} 27. Ng3 {[%emt 0:05:20]} Qd6 {[%emt 0:02:44]} 28. b3 {[%emt 0:07:29]} Nxc3 {[%emt 0:02:29]} 29. Rxc3 {[%emt 0:00:33]} Bxd4 {[%emt 0:00:33]} 30. Nxd4 {[%emt 0:00:46]} Qxd4 {[%emt 0:00:48]} 31. Rf3 {[%emt 0:03:39]} f6 {[%emt 0:02:49]} 32. Rfe3 {[%emt 0:03:09]} Rc7 {[%emt 0:00:55]} 33. Qe2 {[%emt 0:01:38]} Rdd7 {[%emt 0:00:31]} 34. Be6 {[%emt 0:01:46]} Bd3 {[%emt 0:02:30]} 35. Qf3 {[%emt 0:03:14]} Rd8 {[%emt 0:00:44]} 36. Rd1 {[%emt 0:01:27]} Rc3 {[%emt 0:02:33]} 37. Ne2 {[%emt 0:01:06]} Qd6 {[%emt 0:03:27]} 38. Nxc3 Nd5 1-0

[Event "DVM U12 2021-22"]
[Site "Naumburg"]
[Date "2022.03.27"]
[Round "5"]
[White "Dordevic, Tom"]
[Black "Lu, Yunong Elias"]
[Result "1-0"]
[ECO "A05"]
[WhiteElo "1671"]
[BlackElo "1677"]
[Annotator "NA"]
[PlyCount "101"]
[EventDate "2022.03.25"]
[EventType "team-tourn"]
[EventRounds "7"]
[EventCountry "GER"]
[SourceTitle "playchess.com"]
[Source "ChessBase"]
[SourceQuality "1"]
[TimeControl "40/5400+30:1800+30"]

1. Nf3 {[%emt 0:00:07]} Nf6 {[%emt 0:00:16]} 2. g3 {[%emt 0:00:03]} g6 {[%emt 0:00:33]} 3. Bg2 {[%emt 0:00:05]} Bg7 {[%emt 0:00:51]} 4. O-O {[%emt 0:00:13]} O-O {[%emt 0:00:51]} 5. c4 {[%emt 0:00:08]} c5 {[%emt 0:02:37]} 6. d4 {[%emt 0:00:20]} cxd4 {[%emt 0:03:26]} 7. Nxd4 {[%emt 0:00:09]} Nc6 {[%emt 0:01:30]} 8. Nc3 {[%emt 0:09:24]} a6 {[%emt 0:08:22]} 9. Rb1 {[%emt 0:11:42]} e6 {[%emt 0:10:51]} 10. Nxc6 {[%emt 0:10:57]} bxc6 {[%emt 0:10:26]} 11. c5 {[%emt 0:22:44]} Nd5 {[%emt 0:11:34]} 12. Ne4 {[%emt 0:14:05]} Rb8 {[%emt 0:08:35]} 13. Qc2 {[%emt 0:05:03]} a5 {[%emt 0:06:29]} 14. a3 {[%emt 0:00:43]} Ba6 {[%emt 0:03:53]} 15. Rd1 {[%emt 0:04:04]} f5 {[%emt 0:07:57]} 16. Bg5 {[%emt 0:00:50]} Qc7 {[%emt 0:05:57]} 17. Nd6 {[%emt 0:01:27]} h6 {[%emt 0:03:24]} 18. Bxd5 {[%emt 0:00:45]} hxg5 {[%emt 0:00:48]} 19. Bg2 {[%emt 0:00:17]} a4 {[%emt 0:02:16]} 20. Qxa4 {[%emt 0:05:58]} Bxe2 {[%emt 0:00:14]} 21. Rd2 {[%emt 0:00:07]} Bb5 {[%emt 0:01:19]} 22. Qd1 {[%emt 0:00:59]} Ba6 {[%emt 0:01:55]} 23. Bf1 {[%emt 0:03:45]} Bxf1 {[%emt 0:00:27]} 24. Kxf1 {[%emt 0:00:25]} Qa7 {[%emt 0:01:28]} 25. Qc2 {[%emt 0:01:09]} Rfd8 {[%emt 0:00:29]} 26. Kg2 {[%emt 0:00:33]} Bf8 {[%emt 0:01:26]} 27. Qc3 {[%emt 0:01:12]} Bg7 {[%emt 0:00:25]} 28. Qc4 {[%emt 0:01:09]} Qa5 {[%emt 0:01:07]} 29. Qc2 {[%emt 0:01:05]} Bf8 {[%emt 0:01:10]} 30. Rd3 {[%emt 0:01:10]} Bxd6 {[%emt 0:00:16]} 31. Rxd6 {[%emt 0:01:04]} Rb5 {[%emt 0:00:39]} 32. Qd3 {[%emt 0:00:12]} Qa7 {[%emt 0:01:13]} 33. b4 {[%emt 0:00:42]} Kf7 {[%emt 0:02:10]} 34. Rd1 {[%emt 0:01:03]} Rb7 {[%emt 0:00:52]} 35. Rxc6 {[%emt 0:01:12]} dxc6 {[%emt 0:00:37]} 36. Qxd8 {[%emt 0:00:06]} Qxa3 {[%emt 0:00:31]} 37. Rd7+ {[%emt 0:01:53]} Rxd7 {[%emt 0:00:06]} 38. Qxd7+ {[%emt 0:00:04]} Kf6 {[%emt 0:00:14]} 39. b5 {[%emt 0:01:04]} Qxc5 {[%emt 0:01:05]} 40. bxc6 {[%emt 0:00:13]} Qc4 {[%emt 0:00:37]} 41. h3 {[%emt 0:11:25]} Qe4+ {[%emt 0:01:10]} 42. Kh2 {[%emt 0:00:14]} f4 {[%emt 0:07:08]} 43. Qd8+ {[%emt 0:02:35]} Kf7 {[%emt 0:00:31]} 44. Qc7+ {[%emt 0:01:00]} Kf6 {[%emt 0:00:49]} 45. gxf4 {[%emt 0:03:15]} gxf4 {[%emt 0:04:46]} 46. Qd6 {[%emt 0:04:15]} g5 {[%emt 0:05:35]} 47. Qf8+ {[%emt 0:03:18]} Kg6 {[%emt 0:02:23]} 48. Qc5 {[%emt 0:03:01]} g4 {[%emt 0:02:04]} 49. hxg4 {[%emt 0:03:25]} f3 {[%emt 0:00:09]} 50. Kg3 {[%emt 0:01:54]} e5 {[%emt 0:00:46]} 51. Qc1 {[%emt 0:00:48]} 1-0

[Event "DVM U12 2021-22"]
[Site "Naumburg"]
[Date "2022.03.27"]
[Round "5"]
[White "Wartenberg, Alexander"]
[Black "Xue, Luka"]
[Result "0-1"]
[ECO "C11"]
[WhiteElo "1639"]
[BlackElo "1610"]
[Annotator "NA"]
[PlyCount "68"]
[EventDate "2022.03.25"]
[EventType "team-tourn"]
[EventRounds "7"]
[EventCountry "GER"]
[SourceTitle "playchess.com"]
[Source "ChessBase"]
[SourceQuality "1"]
[TimeControl "40/5400+30:1800+30"]

1. e4 {[%emt 0:00:03]} e6 {[%emt 0:00:07]} 2. d4 {[%emt 0:00:19]} d5 {[%emt 0:00:08]} 3. Nc3 {[%emt 0:00:13]} Nf6 {[%emt 0:00:04]} 4. Bg5 {[%emt 0:00:06]} dxe4 {[%emt 0:00:04]} 5. Bxf6 {[%emt 0:03:30]} gxf6 {[%emt 0:00:55]} 6. Nxe4 {[%emt 0:00:20]} Be7 {[%emt 0:00:37]} 7. Bd3 {[%emt 0:01:16]} a6 {[%emt 0:01:18]} 8. Qd2 {[%emt 0:03:07]} b5 {[%emt 0:01:32]} 9. c3 {[%emt 0:01:27]} Bb7 {[%emt 0:00:36]} 10. f3 {[%emt 0:00:30]} Nd7 {[%emt 0:00:51]} 11. Ne2 {[%emt 0:00:37]} f5 {[%emt 0:04:41]} 12. Nf2 {[%emt 0:03:19]} Rg8 {[%emt 0:08:48]} 13. Rg1 {[%emt 0:01:11]} Bg5 {[%emt 0:07:48]} 14. f4 {[%emt 0:00:52]} Bh6 {[%emt 0:12:09]} 15. g3 {[%emt 0:01:46]} Nf6 {[%emt 0:02:28]} 16. O-O-O {[%emt 0:04:48]} Bd5 {[%emt 0:04:32]} 17. Qc2 {[%emt 0:02:29]} Qd6 {[%emt 0:08:41]} 18. c4 {[%emt 0:01:09]} bxc4 {[%emt 0:01:23]} 19. Bxc4 {[%emt 0:02:22]} Rb8 {[%emt 0:02:14]} 20. Bxd5 {[%emt 0:04:17]} Nxd5 {[%emt 0:00:23]} 21. Nc3 {[%emt 0:10:45]} Ne3 {[%emt 0:06:28]} 22. Qa4+ {[%emt 0:00:26]} Ke7 {[%emt 0:00:42]} 23. Rd3 {[%emt 0:07:46]} Rb4 {[%emt 0:01:35]} 24. Qa3 {[%emt 0:02:36]} Nc4 {[%emt 0:01:54]} 25. Nd5+ {[%emt 0:02:44]} exd5 {[%emt 0:01:47]} 26. Qc3 {[%emt 0:01:15]} Bxf4+ {[%emt 0:06:45]} 27. Kd1 {[%emt 0:02:37]} Rxb2 {[%emt 0:04:50]} 28. Re1+ {[%emt 0:00:55]} Kf8 {[%emt 0:00:30]} 29. gxf4 {[%emt 0:01:24]} Rxf2 {[%emt 0:00:44]} 30. Rde3 {[%emt 0:00:30]} Nxe3+ {[%emt 0:03:54]} 31. Qxe3 {[%emt 0:00:10]} Rgg2 {[%emt 0:00:24]} 32. Qe8+ {[%emt 0:02:46]} Kg7 {[%emt 0:00:37]} 33. Re3 {[%emt 0:02:03]} Rf1+ {[%emt 0:00:47]} 34. Re1 {[%emt 0:00:13]} Qxf4 {[%emt 0:00:49]} 0-1

[Event "DVM U12 2021-22"]
[Site "Naumburg"]
[Date "2022.03.27"]
[Round "5"]
[White "Braun, Julian"]
[Black "Klaska, Philipp Leon"]
[Result "0-1"]
[ECO "B23"]
[WhiteElo "1620"]
[BlackElo "1959"]
[Annotator "NA"]
[PlyCount "108"]
[EventDate "2022.03.25"]
[EventType "team-tourn"]
[EventRounds "7"]
[EventCountry "GER"]
[SourceTitle "playchess.com"]
[Source "ChessBase"]
[SourceQuality "1"]
[TimeControl "40/5400+30:1800+30"]

1. e4 {[%emt 0:00:01]} c5 {[%emt 0:00:24]} 2. Nc3 {[%emt 0:00:02]} e6 {[%emt 0:00:18]} 3. Nge2 {[%emt 0:00:03]} a6 {[%emt 0:00:32]} 4. g3 {[%emt 0:00:26]} Nc6 {[%emt 0:00:16]} 5. Bg2 {[%emt 0:00:25]} Nf6 {[%emt 0:00:37]} 6. O-O {[%emt 0:00:36]} Be7 {[%emt 0:01:03]} 7. a4 {[%emt 0:01:17]} O-O {[%emt 0:01:06]} 8. d3 {[%emt 0:01:06]} h6 {[%emt 0:07:11]} 9. Be3 {[%emt 0:02:44]} d5 {[%emt 0:01:49]} 10. exd5 {[%emt 0:00:11]} exd5 {[%emt 0:00:09]} 11. d4 {[%emt 0:00:31]} c4 {[%emt 0:10:20]} 12. Nf4 {[%emt 0:02:52]} Nb4 {[%emt 0:07:10]} 13. Rc1 {[%emt 0:07:54]} Bf5 {[%emt 0:05:21]} 14. Nh5 {[%emt 0:05:36]} Qd7 {[%emt 0:08:57]} 15. Nxf6+ {[%emt 0:01:24]} Bxf6 {[%emt 0:00:17]} 16. Re1 {[%emt 0:08:06]} Rfe8 {[%emt 0:08:09]} 17. Qd2 {[%emt 0:04:47]} Re7 {[%emt 0:05:08]} 18. b3 {[%emt 0:05:49]} Rc8 {[%emt 0:16:44]} 19. Ne2 {[%emt 0:10:35]} Na2 {[%emt 0:03:30]} 20. bxc4 {[%emt 0:02:07]} Nxc1 {[%emt 0:03:29]} 21. Rxc1 {[%emt 0:00:06]} Rxc4 {[%emt 0:01:01]} 22. Nf4 {[%emt 0:01:14]} Be4 {[%emt 0:01:28]} 23. Bh3 {[%emt 0:03:06]} Qxa4 {[%emt 0:02:21]} 24. c3 {[%emt 0:00:34]} Rec7 {[%emt 0:03:18]} 25. Nh5 {[%emt 0:02:11]} Qc6 {[%emt 0:01:49]} 26. Bf4 {[%emt 0:08:33]} Bg6 {[%emt 0:02:29]} 27. Bxc7 {[%emt 0:02:35]} Bxh5 {[%emt 0:00:23]} 28. Bf4 {[%emt 0:01:17]} b5 {[%emt 0:02:46]} 29. g4 {[%emt 0:06:00]} Bg6 {[%emt 0:00:12]} 30. Bf1 {[%emt 0:00:52]} Ra4 {[%emt 0:00:20]} 31. Re1 {[%emt 0:01:16]} a5 {[%emt 0:02:21]} 32. g5 {[%emt 0:01:35]} hxg5 {[%emt 0:01:09]} 33. Bxg5 {[%emt 0:00:04]} b4 {[%emt 0:01:23]} 34. Bxf6 {[%emt 0:00:48]} Qxf6 {[%emt 0:00:59]} 35. Bb5 {[%emt 0:01:19]} Ra3 {[%emt 0:00:55]} 36. cxb4 {[%emt 0:00:57]} axb4 {[%emt 0:00:33]} 37. Qxb4 {[%emt 0:01:31]} Ra2 {[%emt 0:00:38]} 38. Re8+ {[%emt 0:01:28]} Kh7 {[%emt 0:00:06]} 39. Re2 {[%emt 0:01:47]} Ra1+ {[%emt 0:00:52]} 40. Re1 {[%emt 0:00:40]} Rxe1+ {[%emt 0:00:12]} 41. Qxe1 {[%emt 0:30:05]} Qxd4 {[%emt 0:30:15]} 42. Qe2 {[%emt 0:01:48]} Qe4 {[%emt 0:00:00]} 43. Qd1 {[%emt 0:00:00]} d4 {[%emt 0:00:00]} 44. Be2 {[%emt 0:00:00]} d3 {[%emt 0:00:00]} 45. Bf3 {[%emt 0:00:00]} Qb4 {[%emt 0:00:00]} 46. Qf1 {[%emt 0:00:00]} Bf5 {[%emt 0:00:00]} 47. Bd1 {[%emt 0:00:00]} g6 {[%emt 0:00:00]} 48. f3 {[%emt 0:00:00]} Qd2 {[%emt 0:00:00]} 49. Bb3 {[%emt 0:00:00]} f6 {[%emt 0:00:00]} 50. Qa1 {[%emt 0:00:00]} Bh3 {[%emt 0:00:38]} 51. Qa7+ {[%emt 0:00:00]} Kh6 {[%emt 0:00:15]} 52. Qf2 {[%emt 0:00:00]} Qc1+ {[%emt 0:00:20]} 53. Bd1 {[%emt 0:00:00]} Qxd1+ {[%emt 0:00:05]} 54. Qe1 {[%emt 0:00:00]} Qxe1# 0-1

[Event "DVM U12 2021-22"]
[Site "Naumburg"]
[Date "2022.03.27"]
[Round "5"]
[White "Smith, Tobias"]
[Black "Friedrich, Timofej"]
[Result "1-0"]
[ECO "D10"]
[WhiteElo "1571"]
[BlackElo "1377"]
[Annotator "NA"]
[PlyCount "67"]
[EventDate "2022.03.25"]
[EventType "team-tourn"]
[EventRounds "7"]
[EventCountry "GER"]
[SourceTitle "playchess.com"]
[Source "ChessBase"]
[SourceQuality "1"]
[TimeControl "40/5400+30:1800+30"]

1. d4 {[%emt 0:00:01]} d5 {[%emt 0:00:09]} 2. c4 {[%emt 0:00:08]} c6 {[%emt 0:00:15]} 3. cxd5 {[%emt 0:00:06]} cxd5 {[%emt 0:00:08]} 4. Nc3 {[%emt 0:00:05]} Nf6 {[%emt 0:00:08]} 5. Bf4 {[%emt 0:00:07]} Nc6 {[%emt 0:00:24]} 6. e3 {[%emt 0:00:34]} a6 {[%emt 0:00:08]} 7. Bd3 {[%emt 0:01:50]} Bg4 {[%emt 0:00:41]} 8. Nf3 {[%emt 0:08:03]} Bxf3 {[%emt 0:00:33]} 9. Qxf3 {[%emt 0:00:33]} e6 {[%emt 0:00:39]} 10. a3 {[%emt 0:00:18]} Bd6 {[%emt 0:00:22]} 11. Bg3 {[%emt 0:03:34]} b5 {[%emt 0:03:28]} 12. O-O {[%emt 0:11:49]} h6 {[%emt 0:05:59]} 13. Rac1 {[%emt 0:02:42]} Ne7 {[%emt 0:07:58]} 14. Bxd6 {[%emt 0:04:33]} Qxd6 {[%emt 0:05:18]} 15. Bxb5+ {[%emt 0:01:36]} axb5 {[%emt 0:03:48]} 16. Nxb5 {[%emt 0:00:12]} Qb8 {[%emt 0:00:30]} 17. Nc7+ {[%emt 0:00:35]} Kd7 {[%emt 0:02:53]} 18. Nxa8 {[%emt 0:00:19]} Qxa8 {[%emt 0:00:08]} 19. Qg3 {[%emt 0:01:38]} Ne8 {[%emt 0:02:06]} 20. Rc3 {[%emt 0:05:23]} Nf5 {[%emt 0:01:18]} 21. Qf3 {[%emt 0:01:13]} f6 {[%emt 0:00:35]} 22. Rfc1 {[%emt 0:01:12]} Nfd6 {[%emt 0:00:32]} 23. Qh5 {[%emt 0:06:22]} Rf8 {[%emt 0:04:50]} 24. Qg6 {[%emt 0:16:07]} Qb7 {[%emt 0:13:48]} 25. Qc2 {[%emt 0:03:02]} Nc4 {[%emt 0:06:16]} 26. Qa4+ {[%emt 0:01:54]} Kd8 {[%emt 0:00:36]} 27. Rb3 {[%emt 0:01:55]} Qc8 {[%emt 0:08:02]} 28. Qa7 {[%emt 0:05:28]} Ned6 {[%emt 0:09:47]} 29. Rb8 {[%emt 0:01:41]} g5 {[%emt 0:01:24]} 30. Rxc8+ {[%emt 0:00:17]} Nxc8 {[%emt 0:00:10]} 31. Qg7 {[%emt 0:03:48]} Ke8 {[%emt 0:02:56]} 32. b3 {[%emt 0:00:46]} N4d6 {[%emt 0:00:30]} 33. Rc7 {[%emt 0:01:14]} Rf7 {[%emt 0:00:32]} 34. Qg8+ 1-0

[Event "DVM U12 2021-22"]
[Site "Naumburg"]
[Date "2022.03.27"]
[Round "5"]
[White "Merenda, Lukas-Benedikt"]
[Black "Haubold, Sebastian Marcel"]
[Result "1/2-1/2"]
[ECO "C24"]
[WhiteElo "1479"]
[BlackElo "1869"]
[Annotator "NA"]
[PlyCount "95"]
[EventDate "2022.03.25"]
[EventType "team-tourn"]
[EventRounds "7"]
[EventCountry "GER"]
[SourceTitle "playchess.com"]
[Source "ChessBase"]
[SourceQuality "1"]
[TimeControl "40/5400+30:1800+30"]

1. e4 {[%emt 0:00:01]} e5 {[%emt 0:00:08]} 2. Bc4 {[%emt 0:00:06]} Nf6 {[%emt 0:00:07]} 3. d4 {[%emt 0:00:18]} exd4 {[%emt 0:05:32]} 4. Nf3 {[%emt 0:00:37]} Bc5 {[%emt 0:00:52]} 5. e5 {[%emt 0:01:29]} d5 {[%emt 0:09:40]} 6. exf6 {[%emt 0:01:21]} dxc4 {[%emt 0:00:31]} 7. Qe2+ {[%emt 0:01:18]} Be6 {[%emt 0:00:41]} 8. fxg7 {[%emt 0:00:54]} Rg8 {[%emt 0:00:07]} 9. Bh6 {[%emt 0:01:50]} Nc6 {[%emt 0:10:40]} 10. O-O {[%emt 0:08:13]} Qf6 {[%emt 0:03:22]} 11. Qd2 {[%emt 0:05:24]} O-O-O {[%emt 0:04:31]} 12. Qg5 {[%emt 0:04:09]} Be7 {[%emt 0:03:03]} 13. Nbd2 {[%emt 0:05:01]} Qxg5 {[%emt 0:02:57]} 14. Nxg5 {[%emt 0:00:26]} Bxg5 {[%emt 0:00:12]} 15. Bxg5 {[%emt 0:00:02]} Rd5 {[%emt 0:00:13]} 16. Bf6 {[%emt 0:01:15]} Bf5 {[%emt 0:02:58]} 17. f4 {[%emt 0:12:15]} Bxc2 {[%emt 0:02:17]} 18. g4 {[%emt 0:00:30]} b5 {[%emt 0:07:15]} 19. Rfc1 {[%emt 0:01:19]} Bd3 {[%emt 0:00:53]} 20. a4 {[%emt 0:02:32]} Kb7 {[%emt 0:11:18]} 21. Nf3 {[%emt 0:10:23]} b4 {[%emt 0:05:43]} 22. Kf2 {[%emt 0:05:41]} Rd6 {[%emt 0:05:29]} 23. g5 {[%emt 0:01:32]} c3 {[%emt 0:02:15]} 24. bxc3 {[%emt 0:03:56]} dxc3 {[%emt 0:00:13]} 25. h4 {[%emt 0:01:46]} Be4 {[%emt 0:02:06]} 26. Rd1 {[%emt 0:03:12]} Bxf3 {[%emt 0:01:45]} 27. Kxf3 {[%emt 0:00:50]} Rxd1 {[%emt 0:00:24]} 28. Rxd1 {[%emt 0:00:01]} Kb6 {[%emt 0:02:02]} 29. Rd5 {[%emt 0:02:33]} a6 {[%emt 0:02:11]} 30. Ke2 {[%emt 0:00:51]} c2 {[%emt 0:04:35]} 31. Kd2 {[%emt 0:01:42]} b3 {[%emt 0:00:06]} 32. a5+ {[%emt 0:00:52]} Nxa5 {[%emt 0:05:40]} 33. Bd4+ {[%emt 0:01:18]} c5 {[%emt 0:00:23]} 34. Rxc5 {[%emt 0:01:46]} Nc6 {[%emt 0:00:01]} 35. Be3 {[%emt 0:00:14]} Kb7 {[%emt 0:01:53]} 36. Rc3 {[%emt 0:01:22]} Rxg7 {[%emt 0:02:21]} 37. Rxb3+ {[%emt 0:00:03]} Kc7 {[%emt 0:00:17]} 38. Kxc2 {[%emt 0:02:09]} Rg8 {[%emt 0:00:49]} 39. f5 {[%emt 0:00:33]} Ne7 {[%emt 0:00:27]} 40. f6 {[%emt 0:04:12]} Nf5 {[%emt 0:00:16]} 41. h5 {[%emt 0:30:01]} Nxe3+ {[%emt 0:30:52]} 42. Rxe3 {[%emt 0:00:01]} Rxg5 {[%emt 0:00:07]} 43. Re7+ {[%emt 0:00:03]} Kd6 {[%emt 0:00:04]} 44. Rxf7 {[%emt 0:00:51]} Rxh5 {[%emt 0:00:13]} 45. Ra7 {[%emt 0:00:14]} Ke6 {[%emt 0:00:46]} 46. Rxa6+ {[%emt 0:00:43]} Kf7 {[%emt 0:00:18]} 47. Kd3 {[%emt 0:00:27]} Rf5 {[%emt 0:00:31]} 48. Ra7+ {[%emt 0:01:51]} 1/2-1/2